fUSD/lending_fUSD_20250610
["ID","MTS","AMOUNT","RATE_DAILY","PERIOD"]
[365292173,1749583661501,490.0,0.00016931,2]
[365292174,1749583662845,490.0,0.00016438,2]
[365292175,1749583663099,490.0,0.00016602,2]
[365292176,1749583663365,490.0,0.00016767,2]
[365292177,1749583663625,490.0,0.00016931,2]
[365292178,1749583664765,480.0,0.00016438,2]
[365292179,1749583668643,480.0,0.00016438,2]
[365292180,1749583668754,300.16218594,0.00016438,2]
[365292181,1749583670878,490.0,0.00016438,2]
[365292182,1749583671149,490.0,0.00016602,2]
[365292183,1749583671400,490.0,0.00016767,2]
[365292184,1749583671654,490.0,0.00016931,2]
[365292185,1749583672060,480.0,0.00016438,2]
[365292186,1749583677453,490.0,0.00016438,2]
[365292187,1749583677689,490.0,0.00016602,2]
[365292188,1749583677958,490.0,0.00016767,2]
[365292189,1749583678230,490.0,0.00016931,2]
[365292190,1749583684797,490.0,0.00016438,2]
[365292191,1749583685162,490.0,0.00016602,2]
[365292192,1749583685769,490.0,0.00016767,2]
[365292193,1749583686042,510.52,0.00016931,2]
[365292194,1749583687994,490.0,0.00016438,2]
[365292195,1749583688251,490.0,0.00016602,2]
[365292196,1749583688541,490.0,0.00016767,2]
[365292197,1749583688806,490.0,0.00016931,2]
[365292198,1749583689171,261.06810046,0.00016438,2]
[365292199,1749583690892,480.0,0.00016438,2]
[365292200,1749583691945,200.0,0.0002,30]
[365292201,1749583694157,480.0,0.00016438,2]
[365292202,1749583695860,490.0,0.00016438,2]
[365292203,1749583696138,490.0,0.00016602,2]
[365292204,1749583696416,490.0,0.00016767,2]
[365292205,1749583696661,490.0,0.00016931,2]
[365292207,1749583707274,3759.68,0.00016438,2]
[365292208,1749583707433,490.0,0.00016438,2]
[365292209,1749583707560,3759.68,0.00016602,2]
[365292210,1749583707702,490.0,0.00016602,2]
[365292211,1749583707929,3759.68,0.00016767,2]
[365292212,1749583708193,3759.68,0.00016931,2]
[365292213,1749583708448,3759.68,0.00017095,2]
[365292214,1749583708700,3759.68,0.0001726,2]
[365292215,1749583708932,3759.68,0.00017424,2]
[365292216,1749583709264,480.0,0.00016438,2]
[365292220,1749583710799,176.16,0.00016767,2]
[365292221,1749583710884,200.0,0.0002,30]
[365292222,1749583713249,480.0,0.00016438,2]
[365292223,1749583715486,480.0,0.00016438,2]
[365292224,1749583716231,490.0,0.00016438,2]
[365292225,1749583718168,480.0,0.00016438,2]
[365292226,1749583719910,490.0,0.00016438,2]
[365292227,1749583720255,559.30578475,0.00016602,2]
[365292228,1749583721182,480.0,0.00016438,2]
[365292229,1749583722095,490.0,0.00016438,2]
[365292230,1749583722496,516.49,0.00016602,2]
[365292231,1749583722645,150.0,0.0002,30]
[365292232,1749583723495,160.0864467,0.0002,30]
[365292233,1749583724395,480.0,0.00016438,2]
[365292234,1749583726460,490.0,0.00016438,2]
[365292235,1749583726731,490.0,0.00016602,2]
[365292236,1749583727001,395.14,0.00016767,2]
[365292237,1749583727183,461.52509598,0.00016164,2]
[365292238,1749583727403,490.0,0.00016438,2]
[365292239,1749583727651,490.0,0.00016602,2]
[365292240,1749583727931,447.88,0.00016767,2]
[365292241,1749583728330,480.0,0.00016438,2]
[365292242,1749583728595,490.0,0.00016438,2]
[365292243,1749583728849,490.0,0.00016602,2]
[365292244,1749583728887,480.0,0.00016438,2]
[365292245,1749583730306,490.0,0.00016438,2]
[365292246,1749583730572,490.0,0.00016602,2]
[365292247,1749583730827,490.0,0.00016767,2]
[365292248,1749583731069,490.0,0.00016931,2]
[365292249,1749583731696,490.0,0.00017095,2]
[365292250,1749583731757,490.0,0.0001726,2]
[365292251,1749583731849,490.0,0.00017424,2]
[365292252,1749583732312,490.0,0.00016438,2]
[365292253,1749583732564,490.0,0.00016602,2]
[365292254,1749583732728,466.99788598,0.00016438,2]
[365292255,1749583732809,349.59,0.00016767,2]
[365292256,1749583736308,340.35,0.00016438,2]
[365292257,1749583738515,480.0,0.00016438,2]
[365292258,1749583740483,480.0,0.00016438,2]
[365292259,1749583741566,480.0,0.00016438,2]
[365292260,1749583745297,490.0,0.00016438,2]
[365292261,1749583745586,553.53,0.00016602,2]
[365292262,1749583747160,555.55,0.00016438,2]
[365292263,1749583747408,555.55,0.00016602,2]
[365292264,1749583747709,555.55,0.00016767,2]
[365292265,1749583748012,555.55,0.00016931,2]
[365292266,1749583748233,539.3,0.00016438,2]
[365292267,1749583748283,555.55,0.00017095,2]
[365292268,1749583748536,555.55,0.0001726,2]
[365292269,1749583748802,555.55,0.00017424,2]
[365292270,1749583750183,480.0,0.00016438,2]
[365292271,1749583752527,490.0,0.00016438,2]
[365292272,1749583752851,560.58,0.00016438,2]
[365292273,1749583752885,549.52,0.00016438,2]
[365292274,1749583752923,193.79,0.00016602,2]
[365292275,1749583754889,490.0,0.00016438,2]
[365292276,1749583759430,490.0,0.00016438,2]
[365292277,1749583759681,490.0,0.00016602,2]
[365292278,1749583759968,490.0,0.00016767,2]
[365292279,1749583760230,490.0,0.00016931,2]
[365292280,1749583760481,490.0,0.00017095,2]
[365292281,1749583760750,490.0,0.0001726,2]
[365292282,1749583760990,490.0,0.00017424,2]
[365292292,1749583764684,269.33031507,0.00016438,2]
[365292293,1749583765166,490.0,0.00016438,2]
[365292294,1749583765405,490.0,0.00016602,2]
[365292295,1749583765675,490.0,0.00016767,2]
[365292296,1749583765943,490.0,0.00016931,2]
[365292297,1749583766844,490.0,0.00016438,2]
[365292298,1749583767007,480.0,0.00016438,2]
[365292299,1749583767233,490.0,0.00016602,2]
[365292300,1749583769104,557.06358838,0.00016438,2]
[365292301,1749583770242,490.0,0.00016438,2]
[365292302,1749583770533,490.0,0.00016602,2]
[365292303,1749583770939,490.0,0.00016767,2]
[365292304,1749583771185,490.0,0.00016931,2]
[365292305,1749583771215,259.45685654,0.00016438,2]
[365292306,1749583771438,490.0,0.00017095,2]
[365292307,1749583771696,490.0,0.0001726,2]
[365292308,1749583771997,516.04,0.00017424,2]
[365292309,1749583773954,490.0,0.00016438,2]
[365292310,1749583774201,490.0,0.00016602,2]
[365292311,1749583774444,490.0,0.00016767,2]
[365292312,1749583774724,490.0,0.00016931,2]
[365292313,1749583775021,480.0,0.00017095,2]
[365292314,1749583775090,480.73,0.00016438,2]
[365292315,1749583777057,313.82519706,0.00016438,2]
[365292316,1749583777269,480.0,0.00016438,2]
[365292317,1749583780362,609.75,0.00016438,2]
[365292318,1749583780514,490.0,0.00016438,2]
[365292319,1749583780786,464.34,0.00016602,2]
[365292320,1749583781351,480.0,0.00016438,2]
[365292321,1749583782967,490.0,0.00016438,2]
[365292322,1749583783466,490.0,0.00016602,2]
[365292323,1749583785664,490.0,0.00016438,2]
[365292324,1749583785916,490.0,0.00016602,2]
[365292325,1749583787017,480.0,0.00016438,2]
[365292326,1749583787881,480.0,0.00016438,2]
[365292332,1749583788988,480.0,0.00016438,2]
[365292333,1749583789707,480.0,0.00016438,2]
[365292334,1749583790976,490.0,0.00016438,2]
[365292335,1749583791221,311.89,0.00016602,2]
[365292336,1749583791434,490.0,0.00016438,2]
[365292337,1749583791724,228.09,0.00016602,2]
[365292338,1749583796880,490.0,0.00016438,2]
[365292340,1749583802345,197.7,0.00013699,2]
[365292341,1749583802655,490.0,0.00016438,2]
[365292342,1749583802912,490.0,0.00016602,2]
[365292343,1749583803186,490.0,0.00016767,2]
[365292344,1749583803446,490.0,0.00016931,2]
[365292345,1749583803723,490.0,0.00017095,2]
[365292346,1749583804368,161.16,0.0001726,2]
[365292347,1749583805027,480.0,0.00016438,2]
[365292348,1749583806231,490.0,0.00016438,2]
[365292349,1749583808442,490.0,0.00016438,2]
[365292350,1749583809621,490.0,0.00016438,2]
[365292351,1749583809914,490.0,0.00016602,2]
[365292352,1749583810198,490.0,0.00016767,2]
[365292353,1749583810400,490.0,0.00016438,2]
[365292354,1749583810465,567.56496323,0.00016931,2]
[365292355,1749583811998,201.0,0.00016862,2]
[365292356,1749583812101,410.49625796,0.00016438,2]
[365292357,1749583812129,79.50374204,0.00016438,2]
[365292358,1749583812405,490.0,0.00016438,2]
[365292359,1749583812810,490.0,0.00016602,2]
[365292360,1749583813106,490.0,0.00016767,2]
[365292361,1749583813358,490.0,0.00016931,2]
[365292362,1749583813993,490.0,0.00017095,2]
[365292363,1749583814375,527.48,0.0001726,2]
[365292364,1749583814406,490.0,0.00016438,2]
[365292365,1749583814515,490.0,0.00016602,2]
[365292366,1749583814916,490.0,0.00016767,2]
[365292367,1749583815020,351.9021391,0.00016931,2]
[365292368,1749583815162,290.34,0.00016438,2]
[365292369,1749583816539,490.0,0.00016438,2]
[365292370,1749583816800,490.0,0.00016602,2]
[365292371,1749583817056,218.91,0.00016767,2]
[365292372,1749583822075,480.0,0.00016438,2]
[365292373,1749583824874,490.0,0.00016438,2]
[365292374,1749583825130,245.21,0.00016602,2]
[365292375,1749583825884,490.0,0.00016438,2]
[365292376,1749583826134,490.0,0.00016602,2]
[365292377,1749583826385,490.0,0.00016767,2]
[365292378,1749583826589,480.0,0.00016438,2]
[365292379,1749583826638,490.0,0.00016931,2]
[365292380,1749583826908,519.02,0.00017095,2]
[365292381,1749583828497,480.0,0.00016438,2]
[365292382,1749583829227,490.0,0.00016438,2]
[365292383,1749583829256,480.0,0.00016438,2]
[365292384,1749583829485,490.0,0.00016602,2]
[365292385,1749583829734,490.0,0.00016767,2]
[365292386,1749583830019,490.0,0.00016931,2]
[365292387,1749583830281,490.0,0.00017095,2]
[365292388,1749583830472,490.0,0.00016438,2]
[365292389,1749583830553,490.0,0.0001726,2]
[365292390,1749583830710,490.0,0.00016602,2]
[365292391,1749583830744,480.0,0.00016438,2]
[365292392,1749583830815,490.0,0.00017424,2]
[365292393,1749583830972,490.0,0.00016767,2]
[365292394,1749583831237,490.0,0.00016931,2]
[365292395,1749583831329,295.96854293,0.00016438,2]
[365292399,1749583831444,-833.29909032,0.00017524,2]
[365292403,1749583831455,-1200.0,0.00017588,2]
[365292404,1749583831465,-3759.68,0.00017589,2]
[365292406,1749583831475,-56.98331258,0.00017589,2]
[365292407,1749583831505,490.0,0.00017095,2]
[365292408,1749583831549,-327.825,0.00017589,2]
[365292409,1749583831605,-105.19168742,0.00017589,2]
[365292410,1749583831614,-555.55,0.00017589,2]
[365292411,1749583831624,-490.0,0.00017589,2]
[365292412,1749583831634,-99.37451398,0.00017589,2]
[365292413,1749583831660,-390.62548602,0.00017589,2]
[365292414,1749583831669,-372.69,0.00017753,2]
[365292415,1749583831679,-490.0,0.00017753,2]
[365292416,1749583831689,-3759.68,0.00017753,2]
[365292417,1749583831699,-490.0,0.00017753,2]
[365292418,1749583831708,-555.55,0.00017753,2]
[365292419,1749583831718,-490.0,0.00017753,2]
[365292420,1749583831727,-386.04,0.00017753,2]
[365292421,1749583831737,-2083.88,0.00017799,2]
[365292422,1749583831747,-2462.08,0.00017867,2]
[365292423,1749583831756,-1000.0,0.00017867,2]
[365292424,1749583831767,-490.0,0.00017917,2]
[365292425,1749583831777,-1477.468,0.00017917,2]
[365292426,1749583831788,-3759.68,0.00017917,2]
[365292427,1749583831801,-490.0,0.00017917,2]
[365292428,1749583831810,-555.55,0.00017917,2]
[365292429,1749583831820,-490.0,0.00017917,2]
[365292430,1749583831830,-1366.36535,0.00018,2]
[365292431,1749583831840,-19510.50274048,0.00018021,2]
[365292432,1749583831849,-150.0,0.0001808,7]
[365292433,1749583831859,-600.0,0.00018082,4]
[365292434,1749583831870,-490.0,0.00018082,2]
[365292435,1749583831880,-3759.68,0.00018082,2]
[365292436,1749583831890,-490.0,0.00018082,2]
[365292437,1749583831899,-555.55,0.00018082,2]
[365292438,1749583831909,-490.0,0.00018082,2]
[365292439,1749583831919,-201.0,0.00018169,3]
[365292440,1749583831928,-152.0,0.0001821,3]
[365292441,1749583831938,-250.4,0.00018246,2]
[365292442,1749583831949,-3577.65233031,0.00018246,2]
[365292443,1749583831981,490.0,0.0001726,2]
[365292444,1749583832285,480.0,0.00016438,2]
[365292500,1749583833039,490.0,0.00016438,2]
[365292505,1749583833072,306.4,0.00017424,2]
[365292548,1749583833505,480.0,0.00016438,2]
[365292553,1749583833545,364.98343523,0.00016602,2]
[365292558,1749583833585,490.0,0.00016438,2]
[365292570,1749583833821,490.0,0.00016602,2]
[365292594,1749583834070,490.0,0.00016767,2]
[365292608,1749583834198,480.0,0.00016438,2]
[365292620,1749583834315,490.0,0.00016931,2]
[365292740,1749583835448,582.2087091,0.00016438,2]
[365292902,1749583837203,490.0,0.00016438,2]
[365292930,1749583837379,-182.02766969,0.00018246,2]
[365292932,1749583837389,-304.34,0.00018246,2]
[365292934,1749583837399,-555.55,0.00018246,2]
[365292936,1749583837408,-490.0,0.00018246,2]
[365292938,1749583837417,-495.93,0.0001828,2]
[365292940,1749583837426,-1957.856,0.00018351,2]
[365292942,1749583837435,-207.4,0.00018351,2]
[365292944,1749583837445,-666.0,0.00018399,2]
[365292946,1749583837456,-1957.85600001,0.00018406,2]
[365292948,1749583837465,-787.37203013,0.0001841,2]
[365292950,1749583837476,-545.61282817,0.0001841,2]
[365292954,1749583837504,490.0,0.00016602,2]
[365292956,1749583837516,-1491.84109932,0.0001841,2]
[365292958,1749583837527,-934.85404238,0.0001841,2]
[365292960,1749583837537,-555.55,0.0001841,2]
[365292962,1749583837546,-241.0,0.0001841,2]
[365292964,1749583837556,-3954.7628,0.00018505,2]
[365292966,1749583837565,-2083.1319,0.00018505,2]
[365292967,1749583837575,-500.0,0.00018549,2]
[365292968,1749583837584,-448.16969296,0.00018549,2]
[365292969,1749583837594,-25248.76007706,0.0001855,2]
[365292970,1749583837603,-3759.68,0.00018575,2]
[365292971,1749583837614,-555.55,0.00018575,2]
[365292972,1749583837623,-151.0,0.00018594,2]
[365292973,1749583837633,-564.52974943,0.00018594,2]
[365292974,1749583837645,-435.47025057,0.00018594,2]
[365292976,1749583837655,-151.0,0.00018594,2]
[365292977,1749583837665,-1500.0,0.00018594,2]
[365292978,1749583837674,-151.0,0.00018594,2]
[365292979,1749583837684,-151.0,0.00018594,2]
[365292980,1749583837694,-1500.0,0.00018594,2]
[365292981,1749583837705,-151.0,0.00018594,2]
[365292982,1749583837714,-151.0,0.00018594,2]
[365292983,1749583837723,-1500.0,0.00018594,2]
[365292984,1749583837732,-500.0,0.00018594,2]
[365292985,1749583837742,-668.65185757,0.00018594,2]
[365292986,1749583837751,-257.46242383,0.00018594,2]
[365292987,1749583837760,-1500.0,0.00018594,2]
[365292988,1749583837771,-500.0,0.00018594,2]
[365292989,1749583837780,-1143.19126773,0.00018594,2]
[365292990,1749583837790,-500.0,0.00018594,2]
[365292991,1749583837803,-500.0,0.00018594,2]
[365292992,1749583837813,-500.0,0.00018594,2]
[365292993,1749583837822,-500.0,0.00018594,2]
[365292994,1749583837831,-500.0,0.00018594,2]
[365292995,1749583837842,-276.62584099,0.00018594,2]
[365292996,1749583837854,-223.37415901,0.00018594,2]
[365292997,1749583837864,-500.0,0.00018594,2]
[365292998,1749583837873,-500.0,0.00018594,2]
[365292999,1749583837884,-500.0,0.00018594,2]
[365293000,1749583837893,-500.0,0.00018594,2]
[365293001,1749583837903,-500.0,0.00018594,2]
[365293002,1749583837912,-500.0,0.00018594,2]
[365293003,1749583837922,-500.0,0.00018594,2]
[365293004,1749583837931,-500.0,0.00018594,2]
[365293005,1749583837941,-500.0,0.00018594,2]
[365293006,1749583837952,-500.0,0.00018594,2]
[365293007,1749583837962,-500.0,0.00018594,2]
[365293009,1749583837972,-500.0,0.00018594,2]
[365293011,1749583837981,-500.0,0.00018594,2]
[365293013,1749583837991,-500.0,0.00018594,2]
[365293015,1749583838001,-500.0,0.00018594,2]
[365293017,1749583838010,-500.0,0.00018594,2]
[365293019,1749583838019,-500.0,0.00018594,2]
[365293021,1749583838028,-326.01368372,0.00018594,2]
[365293024,1749583838045,-173.98631628,0.00018594,2]
[365293026,1749583838054,-500.0,0.00018594,2]
[365293028,1749583838064,-426.01368372,0.00018594,2]
[365293032,1749583838093,480.0,0.00016438,2]
[365293037,1749583838128,490.0,0.00016767,2]
[365293061,1749583838351,490.0,0.00016931,2]
[365293088,1749583838596,480.0,0.00017095,2]
[365293131,1749583839016,480.0,0.00016438,2]
[365293182,1749583839606,-73.98631628,0.00018594,2]
[365293184,1749583839615,-386.66368357,0.00018594,2]
[365293195,1749583839710,-113.33631643,0.00018594,2]
[365293197,1749583839720,-500.0,0.00018594,2]
[365293199,1749583839729,-500.0,0.00018594,2]
[365293201,1749583839742,-500.0,0.00018594,2]
[365293203,1749583839752,-500.0,0.00018594,2]
[365293205,1749583839762,-500.0,0.00018594,2]
[365293207,1749583839773,-500.0,0.00018594,2]
[365293209,1749583839782,-500.0,0.00018594,2]
[365293211,1749583839792,-500.0,0.00018594,2]
[365293213,1749583839805,-500.0,0.00018594,2]
[365293215,1749583839815,-151.0,0.00018594,2]
[365293217,1749583839825,-500.0,0.00018594,2]
[365293219,1749583839835,-500.0,0.00018594,2]
[365293221,1749583839845,-151.0,0.00018594,2]
[365293223,1749583839855,-802.0,0.00018616,2]
[365293225,1749583839864,-637.0,0.00018616,2]
[365293227,1749583839874,-590.0,0.00018616,2]
[365293229,1749583839884,-927.0,0.00018616,2]
[365293231,1749583839893,-558.0,0.00018616,2]
[365293233,1749583839903,-2001.0,0.00018616,2]
[365293235,1749583839913,-1275.0,0.00018616,2]
[365293237,1749583839922,-1256.0,0.00018616,2]
[365293239,1749583839931,-1159.0,0.00018616,2]
[365293241,1749583839941,-4085.0,0.00018649,2]
[365293243,1749583839950,-155.0,0.00018649,2]
[365293245,1749583839960,-7064.0,0.00018649,2]
[365293247,1749583839970,-1734.0,0.0001865,2]
[365293249,1749583839980,-2638.02567509,0.00018705,2]
[365293252,1749583839990,-3759.68,0.00018739,2]
[365293254,1749583839999,-555.55,0.00018739,2]
[365293256,1749583840009,-276.0,0.000188,2]
[365293258,1749583840019,-201.0,0.00018823,4]
[365293260,1749583840029,-226.27503392,0.000189,2]
[365293262,1749583840038,-276.0,0.000189,2]
[365293264,1749583840048,-3759.68,0.00018904,2]
[365293266,1749583840058,-555.55,0.00018904,2]
[365293268,1749583840067,-500.0,0.00018904,2]
[365293270,1749583840076,-152.0,0.00018933,4]
[365293272,1749583840086,-276.0,0.00019,2]
[365293274,1749583840095,-276.0,0.00019,2]
[365293276,1749583840104,-276.0,0.00019,2]
[365293278,1749583840114,-250.0,0.00019,2]
[365293280,1749583840123,-755.58323841,0.00019059,2]
[365293282,1749583840132,-226.27503392,0.00019067,2]
[365293283,1749583840142,-3759.68,0.00019068,2]
[365293286,1749583840152,-555.55,0.00019068,2]
[365293288,1749583840161,-4578.0062,0.00019078,2]
[365293290,1749583840170,-5000.0,0.000191,4]
[365293292,1749583840179,-755.5832384,0.00019149,2]
[365293294,1749583840189,-500.0,0.00019178,2]
[365293296,1749583840198,-500.0,0.00019178,2]
[365293298,1749583840208,-500.0,0.00019178,2]
[365293300,1749583840217,-500.0,0.00019178,2]
[365293302,1749583840226,-500.0,0.00019178,2]
[365293304,1749583840235,-500.0,0.00019178,2]
[365293306,1749583840244,-500.0,0.00019178,2]
[365293308,1749583840253,-500.0,0.00019178,2]
[365293310,1749583840263,-500.0,0.00019178,2]
[365293312,1749583840272,-500.0,0.00019178,2]
[365293314,1749583840281,-500.0,0.00019178,2]
[365293316,1749583840291,-500.0,0.00019178,2]
[365293318,1749583840300,-500.0,0.00019178,2]
[365293320,1749583840309,-500.0,0.00019178,2]
[365293322,1749583840318,-500.0,0.00019178,2]
[365293324,1749583840327,-500.0,0.00019178,2]
[365293326,1749583840338,-500.0,0.00019178,2]
[365293328,1749583840347,-500.0,0.00019178,2]
[365293330,1749583840356,-500.0,0.00019178,2]
[365293332,1749583840365,-500.0,0.00019178,2]
[365293334,1749583840374,-500.0,0.00019178,2]
[365293336,1749583840383,-500.0,0.00019178,2]
[365293338,1749583840392,-500.0,0.00019178,2]
[365293340,1749583840401,-500.0,0.00019178,2]
[365293342,1749583840410,-500.0,0.00019178,2]
[365293344,1749583840418,-500.0,0.00019178,2]
[365293346,1749583840427,-500.0,0.00019178,2]
[365293348,1749583840436,-500.0,0.00019178,2]
[365293350,1749583840445,-500.0,0.00019178,2]
[365293352,1749583840455,-500.0,0.00019178,2]
[365293354,1749583840464,-500.0,0.00019178,2]
[365293356,1749583840473,-500.0,0.00019178,2]
[365293358,1749583840482,-500.0,0.00019178,2]
[365293359,1749583840491,-500.0,0.00019178,2]
[365293361,1749583840500,-500.0,0.00019178,2]
[365293363,1749583840509,-500.0,0.00019178,2]
[365293366,1749583840519,-500.0,0.00019178,2]
[365293367,1749583840528,-500.0,0.00019178,2]
[365293369,1749583840537,-470.4824837,0.00019178,2]
[365293371,1749583840546,-500.0,0.00019178,2]
[365293373,1749583840555,-500.0,0.00019178,2]
[365293375,1749583840564,-500.0,0.00019178,2]
[365293377,1749583840573,-500.0,0.00019178,2]
[365293379,1749583840582,-500.0,0.00019178,2]
[365293381,1749583840591,-500.0,0.00019178,2]
[365293383,1749583840600,-500.0,0.00019178,2]
[365293385,1749583840609,-500.0,0.00019178,2]
[365293387,1749583840617,-500.0,0.00019178,2]
[365293389,1749583840626,-500.0,0.00019178,2]
[365293391,1749583840635,-500.0,0.00019178,2]
[365293393,1749583840645,-500.0,0.00019178,2]
[365293395,1749583840654,-151.0,0.00019178,2]
[365293397,1749583840663,-216.06,0.00019178,2]
[365293400,1749583840673,-156.08806021,0.00019205,2]
[365293402,1749583840683,-3759.68,0.00019232,2]
[365293404,1749583840692,-555.55,0.00019232,2]
[365293406,1749583840702,-226.27503392,0.00019233,2]
[365293408,1749583840711,-755.5832384,0.0001924,2]
[365293410,1749583840720,-1680.0,0.00019293,2]
[365293412,1749583840729,-1000.0,0.00019297,2]
[365293414,1749583840738,-1069.7852,0.00019297,2]
[365293416,1749583840747,-500.0,0.00019302,2]
[365293418,1749583840756,-755.5832384,0.0001933,2]
[365293420,1749583840765,-30018.08116402,0.00019342,2]
[365293422,1749583840774,-796.87,0.00019357,2]
[365293424,1749583840783,-3759.68,0.00019397,2]
[365293426,1749583840792,-555.55,0.00019397,2]
[365293428,1749583840804,-167.48898794,0.000194,2]
[365293430,1749583840813,-226.27503392,0.000194,2]
[365293431,1749583840822,-755.5832384,0.00019421,2]
[365293432,1749583840831,-156.0880602,0.00019425,2]
[365293433,1749583840841,-156.08806021,0.00019425,2]
[365293434,1749583840850,-796.87,0.00019446,2]
[365293435,1749583840860,-796.87,0.00019446,2]
[365293436,1749583840869,-796.87,0.00019446,2]
[365293437,1749583840881,-796.87,0.00019446,2]
[365293438,1749583840891,-796.87,0.00019446,2]
[365293439,1749583840901,-796.87,0.00019446,2]
[365293440,1749583840910,-796.87,0.00019446,2]
[365293441,1749583840919,-167.4889879,0.00019476,2]
[365293442,1749583840929,-201.0,0.00019476,5]
[365293443,1749583840939,-1296.639813,0.00019479,2]
[365293444,1749583840949,-162.00149915,0.0001948,2]
[365293445,1749583840960,-12939.20918877,0.00019498,2]
[365293446,1749583840970,-23638.05324647,0.000195,2]
[365293447,1749583840979,-755.5832384,0.00019511,2]
[365293448,1749583840989,-167.4889879,0.00019552,2]
[365293449,1749583840998,-3759.68,0.00019561,2]
[365293450,1749583841009,-555.55,0.00019561,2]
[365293451,1749583841018,-226.27503392,0.00019567,2]
[365293452,1749583841028,-519.77122485,0.00019577,2]
[365293453,1749583841038,-42765.34713216,0.0001958,2]
[365293454,1749583841047,-990.97282202,0.00019599,2]
[365293455,1749583841056,-755.5832384,0.00019602,2]
[365293456,1749583841065,-156.08806021,0.00019616,2]
[365293457,1749583841075,-167.4889879,0.00019627,2]
[365293458,1749583841084,-152.0,0.00019657,5]
[365293459,1749583841094,-755.5832384,0.00019692,2]
[365293460,1749583841104,-167.4889879,0.00019703,2]
[365293461,1749583841114,-1000.0,0.00019707,2]
[365293462,1749583841124,-200.0,0.00019709,2]
[365293463,1749583841134,-64382.9409,0.0001971,2]
[365293464,1749583841143,-500.0,0.00019717,2]
[365293465,1749583841152,-223.78579082,0.00019719,2]
[365293466,1749583841162,-215.0738,0.0001972,2]
[365293467,1749583841171,-3759.68,0.00019726,2]
[365293468,1749583841180,-555.55,0.00019726,2]
[365293469,1749583841190,-156.587,0.00019726,2]
[365293470,1749583841202,-1000.0,0.00019729,2]
[365293471,1749583841211,-226.27503392,0.00019733,2]
[365293472,1749583841220,-1000.0,0.00019745,2]
[365293473,1749583841230,-278.05609054,0.00019753,2]
[365293474,1749583841238,-1000.0,0.00019766,2]
[365293475,1749583841247,-150.0,0.00019771,2]
[365293476,1749583841257,-1000.0,0.00019777,2]
[365293477,1749583841266,-160.30486295,0.00019778,2]
[365293478,1749583841274,-290.07859868,0.00019779,2]
[365293479,1749583841283,-167.4889879,0.00019779,2]
[365293480,1749583841292,-224.49259573,0.00019779,2]